[Event "DFMM-LV 2023"]
[Site "Braunfels"]
[Date "2023.06.09"]
[Round "1.26"]
[White "Mader, Lena"]
[Black "Korenova, Martina"]
[Result "0-1"]
[Annotator "TA"]
[ECO "A24"]
[WhiteElo "1778"]
[BlackElo "2151"]
[PlyCount "80"]
[EventDate "2023.06.09"]
[EventType "team-tourn"]
[EventCountry "GER"]
[SourceTitle "playchess.com"]
[Source "ChessBase"]
[SourceQuality "1"]
[TimeControl "40/5400+30:1800+30"]

{[%evp 15,80,4,8,0,0,-6,0,-41,-30,-48,-33,-51,-55,-51,-47,-54,-40,-102,-101,-126,-102,-131,-91,-92,-95,-142,-62,-46,-29,-78,-81,-91,-84,-108,-119,-276,-303,-300,-279,-420,-219,-375,-189,-189,-190,-220,-218,-344,-336,-348,-320,-420,-412,-468,-472,-682,-627,-1565,-1433,-29989,-29990,-29988,-29989,-29996,-29997,-29997,-29998]} 1. c4 {[%emt 0:00:03]} g6 {[%emt 0:00:17]} 2. g3 {[%emt 0:00:09]} Bg7 {[%emt 0:00:05]} 3. Bg2 {[%emt 0:00:04]} Nf6 {[%emt 0:00:22]} 4. Nf3 {[%emt 0:00:26]} O-O {[%emt 0:00:24]} 5. Nc3 {[%emt 0:00:15]} d6 {[%emt 0:00:50]} 6. O-O {[%emt 0:00:13]} e5 {[%emt 0:00:21]} 7. d3 {[%emt 0:00:06]} c6 {[%emt 0:00:42]} 8. Rb1 {[%emt 0:00:27]} Re8 {[%emt 0:00:20]} 9. e3 {[%emt 0:17:10] A24: English Opening vs King's Indian: Lines without ...Nc6.} d5 {[%emt 0:00:30] [#]} 10. b3 $146 {[%emt 0:03:53]} ({Predecessor:} 10. Qc2 Qc7 11. Bd2 Na6 12. cxd5 cxd5 13. Rbc1 Qe7 14. a3 Bd7 15. b4 Rac8 16. Qb3 Nc7 {1-0 Bogdanic,K (1917)-Jurakic,L (1759) CRO-chT U16 Nasice 2017 (3)}) 10... Bf5 {[%emt 0:08:51]} 11. Nh4 {[%emt 0:01:21] The position is equal.} Bg4 {[%emt 0:03:32]} 12. Qc2 {[%emt 0:08:32]} Na6 {[%emt 0:05:57][%cal Bb8a6,Ba6b4,Bb4d3,Bd3c1][%mdl 32]} 13. Ba3 {[%emt 0:09:20]} Rc8 {[%emt 0:04:02]} 14. h3 {[%emt 0:02:59]} Be6 {[%emt 0:00:49]} 15. Nf3 {[%emt 0:01:35] [#]} b5 $1 {[%emt 0:05:32]} 16. Bc1 {[%emt 0:10:16]} (16. cxb5 $2 cxb5 17. Qd2 (17. Nxe5 $2 b4 $19) 17... b4 $19) (16. Nxe5 $2 b4 17. Bb2 (17. cxd5 $2 cxd5 18. Bxb4 Nxb4 $19) 17... bxc3 18. Bxc3 Nd7 $17) (16. Ne2 $15) (16. Bb2 bxc4) 16... Nb4 $17 {[%emt 0:18:10]} ({Of course not} 16... bxc4 $6 17. bxc4 dxc4 18. dxc4 $11 (18. Nxe5 Bf5 $17)) 17. Qe2 {[%emt 0:02:53] [#]} Nxd3 $1 {[%emt 0:02:34][%mdl 512] Black is more active.} 18. cxd5 {[%emt 0:06:35]} (18. Qxd3 e4) 18... Nxc1 {[%emt 0:05:04]} 19. Rbxc1 {[%emt 0:00:24]} Nxd5 {[%emt 0:00:37]} 20. Ne4 {[%emt 0:03:30]} ({Better is} 20. Nxd5 Bxd5 21. e4) 20... Qe7 {[%emt 0:04:43]} (20... f5 $17 21. Nc5 e4) 21. Nc5 $15 {[%emt 0:01:16]} Red8 {[%emt 0:00:21]} 22. Nxe6 {[%emt 0:02:59]} (22. Rfd1 $11 {was preferrable.}) 22... Qxe6 $17 {[%emt 0:00:14]} ({Don't play} 22... fxe6 23. Nd2 $11) 23. Ng5 {[%emt 0:00:10]} Qe7 {[%emt 0:01:44]} 24. Ne4 {[%emt 0:02:37]} f5 {[%emt 0:01:05]} 25. Nc5 {[%emt 0:00:35] This costs White the game.} (25. Nc3 $17) 25... e4 $19 {[%emt 0:00:38] aiming for ...Nc3.} 26. Qe1 {[%emt 0:05:40] Prevents Nc3. White is weak on the dark squares} a5 {[%emt 0:07:21]} 27. Kh2 {[%emt 0:05:16]} (27. Qxa5 $142 Ra8 28. Na6) 27... Kh8 {[%emt 0:05:24]} (27... Bb2 $142 28. Rc2 Ba3 29. Nxe4 fxe4) 28. Rg1 $2 {[%emt 0:00:06]} (28. a3) 28... b4 {[%emt 0:01:45]} (28... Bb2 $142 {Hoping for ...Ba3.} 29. Rc2 Ba3) 29. Na4 {[%emt 0:00:32]} Qf6 {[%emt 0:07:12]} 30. Bf1 {[%emt 0:00:26]} Nc3 {[%emt 0:01:37]} 31. Nxc3 {[%emt 0:02:49]} (31. Be2 {keeps fighting.}) 31... bxc3 {[%emt 0:00:03]} 32. Rc2 {[%emt 0:00:20]} Rd6 {[%emt 0:00:18]} 33. Bc4 {[%emt 0:10:03]} Rcd8 {[%emt 0:00:27]} 34. Kg2 {[%emt 0:00:32]} Rd2 {[%emt 0:01:35]} 35. Qb1 {[%emt 0:00:20]} (35. Rxd2 $142 Rxd2 36. h4) 35... Qg5 {[%emt 0:03:18]} 36. Rf1 {[%emt 0:02:49]} Qxe3 {[%emt 0:00:45]} 37. a3 {[%emt 0:00:23]} Qf3+ {[%emt 0:01:09] Black mates.} 38. Kg1 {[%emt 0:00:04]} e3 {[%emt 0:01:30][%cal Be4e3,Be3f2][%mdl 32]} 39. b4 {[%emt 0:00:52]} exf2+ {[%emt 0:00:39]} 40. Kh2 {[%emt 0:01:22]} Be5 {[%emt 0:00:12] Artfully played by Korenova.   Weighted Error Value: White=0.74/Black=0.21 (precise)} 0-1

[Event "DFMM-LV 2023"]
[Site "Braunfels"]
[Date "2023.06.09"]
[Round "1.27"]
[White "Steinbacher, Claudia"]
[Black "Nikolaeva, Mariya A"]
[Result "1-0"]
[Annotator "TA"]
[ECO "E80"]
[WhiteElo "2039"]
[BlackElo "1249"]
[PlyCount "109"]
[EventDate "2023.06.09"]
[EventType "team-tourn"]
[EventCountry "GER"]
[SourceTitle "playchess.com"]
[Source "ChessBase"]
[SourceQuality "1"]
[TimeControl "40/5400+30:1800+30"]

{[%evp 13,109,31,26,31,31,28,30,28,28,28,26,24,22,22,23,33,77,76,129,128,132,122,120,40,114,100,139,130,131,133,130,87,139,139,176,155,157,114,139,139,139,139,139,139,139,139,139,139,139,139,139,113,127,119,153,113,113,116,179,179,257,257,293,290,279,281,481,240,481,481,519,495,485,471,617,626,549,497,1357,1345,2058,2053,1675,1652,7742,6008,1359,891,834,795,29989,1336,29993,29983,29984,1519,29990,29991]} 1. d4 {[%emt 0:00:03]} Nf6 {[%emt 0:00:07]} 2. c4 {[%emt 0:00:01]} g6 {[%emt 0:00:07]} 3. Nc3 {[%emt 0:00:02]} Bg7 {[%emt 0:00:08]} 4. e4 {[%emt 0:00:02]} d6 {[%emt 0:00:09]} 5. f3 {[%emt 0:00:09]} c6 {[%emt 0:00:14]} 6. Be3 {[%emt 0:00:56]} a6 {[%emt 0:00:08]} 7. a4 $1 {[%emt 0:01:43][%mdl 4] is currently scoring better than 7.Qd2.} a5 {[%emt 0:02:00]} 8. Nge2 {[%emt 0:04:09] E80: King's Indian: Sämisch: Lines without early ...0-0.} Na6 {[%emt 0:02:56]} 9. Qd2 {[%emt 0:04:49]} Nb4 {[%emt 0:03:58]} 10. Na2 {[%emt 0:03:55] White has an edge.} Nxa2 {[%emt 0:04:58]} 11. Rxa2 {[%emt 0:00:01]} Nd7 {[%emt 0:11:06]} 12. Nc3 {[%emt 0:04:56]} O-O {[%emt 0:06:39]} 13. Be2 {[%emt 0:03:47]} e5 {[%emt 0:05:50] [#]} 14. d5 $146 {[%emt 0:01:59]} ({Predecessor:} 14. O-O Qe7 15. Rd1 Re8 16. Bf1 Bf8 17. Bg5 f6 18. Be3 exd4 19. Bxd4 Nc5 20. Bf2 {0-1 Cuellar Gacharna,M (2345)-Garcia,L (2350) Bogota 1976 (2)}) 14... c5 {[%emt 0:02:16]} 15. g4 {[%emt 0:11:07]} Nb8 {[%emt 0:08:01]} (15... f5 $142) 16. h4 $16 {[%emt 0:05:52]} f6 {[%emt 0:17:05]} 17. Bd1 {[%emt 0:07:34]} Na6 {[%emt 0:01:38]} 18. b3 {[%emt 0:03:52]} (18. h5 $16) 18... Bd7 {[%emt 0:02:09]} (18... Nb4 $14) 19. Qg2 {[%emt 0:01:56]} g5 {[%emt 0:03:09]} 20. Qf1 {[%emt 0:03:48]} h6 {[%emt 0:02:30]} 21. Rah2 {[%emt 0:00:08]} Kf7 {[%emt 0:05:37]} 22. hxg5 {[%emt 0:03:49]} fxg5 {[%emt 0:04:36]} ({Black should play} 22... hxg5 23. Rh7 Rh8) 23. Ne2 {[%emt 0:01:10]} Qf6 {[%emt 0:03:03] [#]} 24. Ng3 $1 {[%emt 0:00:28]} Rh8 {[%emt 0:01:04]} 25. Nf5 {[%emt 0:03:54]} Bxf5 {[%emt 0:00:12]} 26. gxf5 {[%emt 0:00:02]} ({Don't play} 26. exf5 Nb4 $16) 26... Ke7 {[%emt 0:00:58] Black is weak on the light squares} 27. Qf2 {[%emt 0:04:16]} Nb4 {[%emt 0:01:36] [#] ...Nd3+ is the strong threat.} 28. Kd2 {[%emt 0:00:21] Dodges Nd3} Kd7 {[%emt 0:00:25]} 29. Be2 {[%emt 0:02:38][%cal Bd1e2,Be2f1,Bf1h3,Bh3g4,Bg4h5,Bh5e8,Be8c6][%mdl 32]} b6 {[%emt 0:00:40]} 30. Bf1 {[%emt 0:00:21]} Rag8 {[%emt 0:00:20]} 31. Rh5 {[%emt 0:00:37]} Na6 {[%emt 0:01:54]} 32. Bh3 {[%emt 0:00:10]} Kc7 {[%emt 0:00:44]} 33. Bg4 {[%emt 0:00:31]} Nb8 {[%emt 0:00:16]} 34. Kd3 {[%emt 0:00:36]} Nd7 {[%emt 0:00:09]} 35. R5h2 {[%emt 0:00:37] White is more active.} Kb7 {[%emt 0:00:52]} (35... Bf8 $16 36. Bh5 Qe7) 36. Bh5 $18 {[%emt 0:00:07]} Nf8 {[%emt 0:00:16]} (36... Nb8 $142 37. Kc2 Na6) 37. Be8 {[%emt 0:00:42]} Kc7 {[%emt 0:00:40]} 38. Bc6 {[%emt 0:01:56][%cal Ob3b4] Hoping for b4!} Nd7 {[%emt 0:00:17]} 39. b4 {[%emt 0:01:35]} Nb8 $2 {[%emt 0:03:23]} (39... axb4 40. Ra1 Ra8) 40. bxc5 {[%emt 0:01:36]} (40. bxa5 $142 Nxc6 41. axb6+ Kxb6 42. Rb1+ Kc7 43. dxc6) 40... bxc5 $2 {[%emt 0:01:47]} (40... dxc5 {was worth a try.} 41. Bb5 Rc8) 41. Bb5 {[%emt 0:30:08]} ({Not} 41. Qb2 Nxc6 42. dxc6 Rb8 $16) 41... Nd7 {[%emt 0:30:18]} 42. Bd2 {[%emt 0:00:11]} Ra8 {[%emt 0:00:12]} 43. Qe1 {[%emt 0:00:13]} Rhb8 {[%emt 0:01:06]} 44. Bxa5+ {[%emt 0:00:57]} Kc8 {[%emt 0:00:05]} 45. Qc3 {[%emt 0:02:06] Threatens to win with Rb2.} Rb7 {[%emt 0:01:03]} (45... g4 $142 46. fxg4 Qg5) 46. Bc6 {[%emt 0:00:39] This pair of bishops is nice.} Rab8 {[%emt 0:00:22]} 47. Bxb7+ {[%emt 0:00:05]} Rxb7 {[%emt 0:00:06]} 48. Rb2 {[%emt 0:00:21] Intending Rxb7 and mate.} Ra7 {[%emt 0:01:08]} 49. Rb5 {[%emt 0:00:57] White threatens Qb3 and mate.} g4 {[%emt 0:00:24]} 50. Qd2 {[%emt 0:04:31] aiming for Rhb1.} gxf3 {[%emt 0:01:05]} 51. Rg1 {[%emt 0:01:30][%cal Bh1g1,Bg1g6,Bg6d6][%mdl 32]} Nf8 {[%emt 0:02:06]} 52. Qf2 {[%emt 0:00:13]} (52. Qb2 $142 Kd7 53. Rb7+ {[%mdl 64] Skewer} Rxb7 54. Qxb7+ Ke8 55. Rxg7 Qxg7 56. Qxg7 Nd7 57. f6) 52... Nh7 {[%emt 0:00:39]} 53. Rg6 {[%emt 0:02:47]} Qe7 {[%emt 0:00:21]} 54. Qxf3 {[%emt 0:03:16]} (54. Re6 $142 Qd7 55. Qb2 Ra8 56. Rxc5+ dxc5 57. Qb6 Rxa5 58. Rc6+ Qxc6 59. dxc6) 54... Qh4 {[%emt 0:00:12]} 55. Rxd6 {[%emt 0:02:00] Artfully played by Steinbacher.   Weighted Error Value: White=0.22 (precise) /Black=0.66} 1-0

[Event "DFMM-LV 2023"]
[Site "Braunfels"]
[Date "2023.06.09"]
[Round "1.28"]
[White "Moench, Dorothee"]
[Black "Just, Anita"]
[Result "0-1"]
[Annotator "TA"]
[ECO "C00"]
[WhiteElo "1722"]
[BlackElo "1910"]
[PlyCount "56"]
[EventDate "2023.06.09"]
[EventType "team-tourn"]
[EventCountry "GER"]
[SourceTitle "playchess.com"]
[Source "ChessBase"]
[SourceQuality "1"]
[TimeControl "40/5400+30:1800+30"]

{[%evp 9,56,-32,-25,-99,-97,-112,-101,-104,-71,-79,-72,-67,-78,-63,-60,-70,-81,-70,-74,-95,-83,-115,-109,-195,-203,-206,-181,-168,-166,-168,-143,-143,-143,-148,-154,-542,-537,-600,-599,-589,-577,-1241,-1031,-1051,-1020,-5273,-5161,-29986,-29987]} 1. e4 {[%emt 0:00:08]} e6 {[%emt 0:00:06]} 2. f4 {[%emt 0:00:26]} d5 {[%emt 0:01:32]} 3. e5 {[%emt 0:00:17]} c5 {[%emt 0:01:57]} 4. Nf3 {[%emt 0:00:16]} Nc6 {[%emt 0:00:30]} 5. Bb5 {[%emt 0:01:01]} Bd7 {[%emt 0:00:46][%cal Oc6e5]} 6. O-O {[%emt 0:00:29] [#] C00: French: Unusual White 2nd moves.} (6. Be2 $11) 6... Nxe5 $1 $17 {[%emt 0:09:32][%mdl 64] Discovered Attack} 7. fxe5 {[%emt 0:01:30] Hoping for Qe2.} (7. Nxe5 Bxb5) 7... Bxb5 {[%emt 0:00:06]} 8. d3 {[%emt 0:00:39] Black is better.} Be7 {[%emt 0:01:55] [#]} 9. a4 $146 {[%emt 0:06:05]} ({Predecessor:} 9. Nc3 Bc6 10. Qe2 Qd7 11. Bg5 f6 12. exf6 gxf6 13. Bh4 O-O-O 14. a4 Nh6 15. Nb5 {0-1 Wisniewski,J (2000)-Wargulec,D (2000) POL-chT Region 0607 2006 (10)}) 9... Bc6 {[%emt 0:01:37]} 10. Qe1 {[%emt 0:02:09]} Nh6 {[%emt 0:07:50]} 11. Bxh6 {[%emt 0:03:35]} gxh6 {[%emt 0:00:06]} 12. Qe3 {[%emt 0:11:17]} Qb6 {[%emt 0:05:11]} 13. b3 {[%emt 0:06:59]} O-O-O {[%emt 0:02:16]} 14. Nbd2 {[%emt 0:05:09]} Qb4 {[%emt 0:06:14]} 15. d4 {[%emt 0:09:21]} cxd4 {[%emt 0:02:43][%mdl 64] [#] Deflection} 16. Nxd4 {[%emt 0:00:18]} (16. Qd3 $17) 16... Bg5 $19 {[%emt 0:01:55][%mdl 64] Skewer} 17. Rf4 {[%emt 0:06:11]} Bxf4 {[%emt 0:02:33]} 18. Qxf4 {[%emt 0:00:02]} Rhg8 {[%emt 0:04:04]} 19. N2f3 {[%emt 0:03:08]} Qc3 {[%emt 0:02:49]} 20. Rf1 {[%emt 0:05:22]} Rg7 {[%emt 0:03:43]} 21. g3 {[%emt 0:09:12]} h5 {[%emt 0:05:24] Strongly threatening ...Rg4.} 22. Kg2 $2 {[%emt 0:01:35] Now White is beyond hope.} (22. Rd1 $17 {is tougher.}) 22... Rg4 {[%emt 0:08:50][%mdl 64] Skewer} 23. Qxf7 {[%emt 0:05:54]} Rxd4 {[%emt 0:01:13]} 24. Nxd4 {[%emt 0:00:38]} Qxd4 {[%emt 0:00:18]} 25. Qxh5 {[%emt 0:05:48]} Qe4+ {[%emt 0:01:44]} 26. Kh3 {[%emt 0:02:17]} Qxc2 {[%emt 0:01:49] aiming for ...d4.} 27. Qh6 {[%emt 0:00:28]} d4 {[%emt 0:02:15] ( -> ...Qg2+)} 28. Qxe6+ {[%emt 0:02:30]} Bd7 {[%emt 0:00:13] Weighted Error Value: White=1.18/Black=0.18 (very precise)} 0-1

[Event "DFMM-LV 2023"]
[Site "Braunfels"]
[Date "2023.06.09"]
[Round "1.29"]
[White "Kosovska, Olena"]
[Black "Richter, Johanna"]
[Result "1-0"]
[Annotator "NA RC COMBH"]
[ECO "B23"]
[WhiteElo "1894"]
[BlackElo "1470"]
[PlyCount "49"]
[EventDate "2023.06.09"]
[EventType "team-tourn"]
[EventCountry "GER"]
[SourceTitle "playchess.com"]
[Source "ChessBase"]
[SourceQuality "1"]
[TimeControl "40/5400+30:1800+30"]

1. e4 {[%emt 0:00:03]} c5 {[%emt 0:00:10]} 2. Nc3 {[%emt 0:00:08]} Nc6 {[%emt 0:00:08]} 3. f4 {[%emt 0:00:04]} e6 {[%emt 0:01:11]} 4. Nf3 {[%emt 0:00:43]} g6 {[%emt 0:00:19]} 5. Bb5 {[%emt 0:00:59]} Bg7 {[%emt 0:01:06]} 6. Bxc6 {[%emt 0:00:56]} bxc6 {[%emt 0:00:47]} 7. e5 {[%emt 0:00:24]} f5 {[%emt 0:04:00]} 8. O-O {[%emt 0:04:05]} Ne7 {[%emt 0:01:04]} 9. d3 {[%emt 0:00:14]} O-O {[%emt 0:00:12]} 10. Be3 {[%emt 0:01:02]} Qa5 {[%emt 0:05:28]} 11. Nd2 {[%emt 0:01:44]} Nd5 {[%emt 0:07:17]} 12. Nxd5 {[%emt 0:00:41]} exd5 {[%emt 0:03:39]} 13. Nb3 {[%emt 0:00:47]} Qd8 {[%emt 0:04:38]} 14. Bxc5 {[%emt 0:01:21]} Re8 {[%emt 0:00:43]} 15. c4 {[%emt 0:08:35]} dxc4 {[%emt 0:03:45]} 16. dxc4 {[%emt 0:00:25]} Qh4 {[%emt 0:11:02]} 17. Qd4 {[%emt 0:06:45]} a6 {[%emt 0:02:56]} 18. Rad1 {[%emt 0:02:16]} Re6 {[%emt 0:04:14]} 19. Bd6 {[%emt 0:02:47]} g5 {[%emt 0:07:38]} 20. g3 {[%emt 0:08:33]} Qh5 {[%emt 0:02:08]} 21. fxg5 {[%emt 0:06:02]} Qxg5 {[%emt 0:00:34]} 22. Rf4 {[%emt 0:02:16]} Bh6 {[%emt 0:03:48]} 23. Rdf1 {[%emt 0:02:50]} c5 {[%emt 0:04:04]} 24. Nxc5 {[%emt 0:00:39]} Rg6 {[%emt 0:00:37]} 25. Qd5+ {[%emt 0:01:19]} 1-0

[Event "DFMM-LV 2023"]
[Site "Braunfels"]
[Date "2023.06.09"]
[Round "1.30"]
[White "Zemke, Christine"]
[Black "Lowke, Kathrin"]
[Result "1/2-1/2"]
[Annotator "NA RC COMBH"]
[ECO "A48"]
[WhiteElo "1682"]
[BlackElo "1848"]
[PlyCount "62"]
[EventDate "2023.06.09"]
[EventType "team-tourn"]
[EventCountry "GER"]
[SourceTitle "playchess.com"]
[Source "ChessBase"]
[SourceQuality "1"]
[TimeControl "40/5400+30:1800+30"]

1. d4 {[%emt 0:00:04]} Nf6 {[%emt 0:00:13]} 2. e3 {[%emt 0:00:40]} g6 {[%emt 0:00:07]} 3. Bd3 {[%emt 0:00:29]} Bg7 {[%emt 0:00:21]} 4. c3 {[%emt 0:01:07]} d6 {[%emt 0:00:14]} 5. Nf3 {[%emt 0:03:58]} O-O {[%emt 0:00:19]} 6. O-O {[%emt 0:00:18]} Nc6 {[%emt 0:00:30]} 7. Nbd2 {[%emt 0:01:47]} e5 {[%emt 0:03:29]} 8. Qc2 {[%emt 0:05:17]} Qe7 {[%emt 0:12:35]} 9. e4 {[%emt 0:10:31]} Nh5 {[%emt 0:03:06]} 10. d5 {[%emt 0:01:03]} Nd8 {[%emt 0:00:55]} 11. Nb3 {[%emt 0:10:10]} Nf4 {[%emt 0:08:52]} 12. Bxf4 {[%emt 0:01:56]} exf4 {[%emt 0:00:06]} 13. Nfd4 {[%emt 0:04:10]} c5 {[%emt 0:02:14]} 14. dxc6 {[%emt 0:00:12]} Nxc6 {[%emt 0:02:39]} 15. Nxc6 {[%emt 0:01:24]} bxc6 {[%emt 0:00:06]} 16. f3 {[%emt 0:04:01]} Qc7 {[%emt 0:08:40]} 17. Rfe1 {[%emt 0:05:18]} Rb8 {[%emt 0:04:11]} 18. Rab1 {[%emt 0:07:48]} Be6 {[%emt 0:01:26]} 19. Nc1 {[%emt 0:02:25]} Qa5 {[%emt 0:03:15]} 20. Kh1 {[%emt 0:04:01]} Rb7 {[%emt 0:05:53]} 21. b4 {[%emt 0:04:26]} Qg5 {[%emt 0:05:58]} 22. a3 {[%emt 0:03:20]} h5 {[%emt 0:05:26]} 23. Ne2 {[%emt 0:01:32]} h4 {[%emt 0:01:00]} 24. Nd4 {[%emt 0:00:42]} Bd7 {[%emt 0:00:06]} 25. Bf1 {[%emt 0:00:39]} Rfb8 {[%emt 0:04:21]} 26. Qd2 {[%emt 0:02:03]} Be5 {[%emt 0:01:22]} 27. Rbc1 {[%emt 0:02:05]} Kg7 {[%emt 0:07:58]} 28. Bc4 {[%emt 0:04:49]} Qf6 {[%emt 0:04:43]} 29. Ne2 {[%emt 0:01:47]} Rh8 {[%emt 0:01:54]} 30. h3 {[%emt 0:03:42]} Rhb8 {[%emt 0:01:18]} 31. Red1 {[%emt 0:00:45]} Rd8 {[%emt 0:03:43]} 1/2-1/2

[Event "DFMM-LV 2023"]
[Site "Braunfels"]
[Date "2023.06.09"]
[Round "1.32"]
[White "Perovic-Ottstadt, Sanja"]
[Black "Gottschall, Ina"]
[Result "0-1"]
[Annotator "NA RC COMBH"]
[ECO "A48"]
[WhiteElo "1443"]
[BlackElo "1673"]
[PlyCount "90"]
[EventDate "2023.06.09"]
[EventType "team-tourn"]
[EventCountry "GER"]
[SourceTitle "playchess.com"]
[Source "ChessBase"]
[SourceQuality "1"]
[TimeControl "40/5400+30:1800+30"]

1. d4 {[%emt 0:00:02]} g6 {[%emt 0:00:13]} 2. Nf3 {[%emt 0:00:11]} Bg7 {[%emt 0:00:06]} 3. c3 {[%emt 0:00:10]} d6 {[%emt 0:00:21]} 4. Bg5 {[%emt 0:00:38]} Nf6 {[%emt 0:00:12]} 5. Nbd2 {[%emt 0:00:14]} c5 {[%emt 0:02:42]} 6. e3 {[%emt 0:02:09]} O-O {[%emt 0:03:46]} 7. Be2 {[%emt 0:00:33]} Nc6 {[%emt 0:00:56]} 8. O-O {[%emt 0:00:22]} Re8 {[%emt 0:04:56]} 9. dxc5 {[%emt 0:03:48]} dxc5 {[%emt 0:00:18]} 10. Qc2 {[%emt 0:01:10]} Qc7 {[%emt 0:04:35]} 11. Bf4 {[%emt 0:04:21]} e5 {[%emt 0:05:28]} 12. Bg3 {[%emt 0:02:50]} Nh5 {[%emt 0:09:50]} 13. e4 {[%emt 0:01:48]} Nxg3 {[%emt 0:01:30]} 14. hxg3 {[%emt 0:00:14]} a6 {[%emt 0:09:50]} 15. Rfe1 {[%emt 0:02:17]} Kh8 {[%emt 0:02:42]} 16. Rad1 {[%emt 0:02:36]} f5 {[%emt 0:09:30]} 17. Bc4 {[%emt 0:05:14]} f4 {[%emt 0:01:57]} 18. gxf4 {[%emt 0:01:49]} exf4 {[%emt 0:00:10]} 19. Bd5 {[%emt 0:03:03]} Ne5 {[%emt 0:10:15]} 20. Nxe5 {[%emt 0:04:15]} Rxe5 {[%emt 0:00:50]} 21. Nf3 {[%emt 0:00:30]} Rh5 {[%emt 0:00:20]} 22. Qb3 {[%emt 0:01:53]} Bg4 {[%emt 0:04:22]} 23. Rd3 {[%emt 0:05:05]} Rd8 {[%emt 0:03:40]} 24. Red1 {[%emt 0:06:20]} b5 {[%emt 0:03:37]} 25. c4 {[%emt 0:01:58]} b4 {[%emt 0:03:18]} 26. Qc2 {[%emt 0:03:48]} Bxf3 {[%emt 0:00:37]} 27. Rxf3 {[%emt 0:00:58]} Qe5 {[%emt 0:01:59]} 28. b3 {[%emt 0:00:52]} Qg5 {[%emt 0:01:18]} 29. Bb7 {[%emt 0:02:51]} Rxd1+ {[%emt 0:02:35]} 30. Qxd1 {[%emt 0:01:12]} Bd4 {[%emt 0:00:05]} 31. Bxa6 {[%emt 0:02:40]} Qh4 {[%emt 0:00:49]} 32. Kf1 {[%emt 0:01:22]} Qh1+ {[%emt 0:00:49]} 33. Ke2 {[%emt 0:00:30]} Qxd1+ {[%emt 0:02:10]} 34. Kxd1 {[%emt 0:00:47]} Rh1+ {[%emt 0:00:14]} 35. Ke2 {[%emt 0:00:56]} g5 {[%emt 0:00:46]} 36. Rh3 {[%emt 0:01:56]} Ra1 {[%emt 0:00:16]} 37. Kf3 {[%emt 0:07:10]} Rxa2 {[%emt 0:00:18]} 38. Bb5 {[%emt 0:00:26]} Rxf2+ {[%emt 0:01:51]} 39. Kg4 {[%emt 0:00:29]} Rxg2+ {[%emt 0:00:40]} 40. Kf5 {[%emt 0:00:12]} Rg3 {[%emt 0:07:43]} 41. Rh6 {[%emt 0:33:31]} f3 {[%emt 0:30:30]} 42. e5 {[%emt 0:04:29]} f2 {[%emt 0:02:51]} 43. Rf6 {[%emt 0:06:03]} Rf3+ {[%emt 0:00:00]} 44. Kxg5 {[%emt 0:00:00]} Rxf6 {[%emt 0:00:00]} 45. exf6 {[%emt 0:00:00]} Bxf6+ {[%emt 0:00:00]} 0-1